bitfinex/quotes_ETHUSD_20241204
["timestamp","ask_amount","ask_price","bid_price","bid_amount"]
[1733301065997,0.25027594,3712.1,3711.4,1.20700476]
[1733301066171,0.55,3712.3,3711.4,1.23394541]
[1733301066371,0.25019288,3712.2,3711.5,0.8705]
[1733301066570,0.55,3712.5,3711.5,1.31471803]
[1733301066889,0.25016284,3712.4,3711.5,0.8583]
[1733301067097,0.40098039,3712.8,3711.8,0.8583]
[1733301067297,0.25012265,3712.7,3711.9,3.55226]
[1733301067503,0.16848619,3713.5,3711.9,3.55226]
[1733301067504,0.25012265,3712.6,3711.9,0.8583]
[1733301067827,2.94381619,3712.5,3711.9,0.8583]
[1733301067983,0.25014619,3712.4,3711.9,0.8583]
[1733301068169,2.98808162,3712.4,3711.5,0.8447]
[1733301068518,0.80011388,3712.3,3711.5,0.8447]
[1733301068668,0.55,3712.3,3711.5,0.8447]
[1733301068880,2.94393526,3712.2,3711.5,0.8447]
[1733301069096,2.69392,3712.1,3711.5,0.8447]
[1733301069269,0.819392,3712.0,3711.3,0.8408]
[1733301069908,0.819392,3712.0,3709.8,0.8547]
[1733301069909,1.06942698,3712.0,3709.8,0.8547]
[1733301070068,3.2445,3711.3,3710.2,2.6952]
[1733301070269,0.55,3711.3,3710.7,0.8547]
[1733301070465,0.7997586,3711.6,3710.7,0.8547]
[1733301070882,0.55,3711.8,3710.7,3.5496]
[1733301071083,0.79968366,3711.8,3710.8,2.69482]
[1733301071287,1.14905603,3711.8,3710.8,2.69482]
[1733301071499,1.14905603,3711.8,3710.9,2.69474]
[1733301071701,0.55,3712.1,3711.2,2.69447]
[1733301071923,0.40014739,3712.3,3710.7,0.8795]
[1733301071924,0.24958522,3712.2,3710.7,0.8795]
[1733301072071,1.12574973,3713.0,3710.6,0.52939066]
[1733301072072,0.24958522,3712.7,3711.8,0.8795]
[1733301072276,0.24958522,3712.6,3711.8,3.5736]
[1733301072593,0.24958522,3712.7,3711.8,3.5736]
[1733301072805,0.24958522,3712.7,3711.8,0.8795]
[1733301073008,0.54388274,3712.7,3711.8,0.8795]
[1733301073375,0.55,3712.6,3711.8,0.8795]
[1733301073681,0.79959004,3712.6,3711.8,0.8795]
[1733301073912,0.55,3712.6,3711.8,0.8795]
[1733301074407,3.4931344,3712.6,3711.8,0.8795]
[1733301074571,0.55,3712.4,3711.8,0.8795]
[1733301075376,0.55,3712.4,3711.5,1.41292975]
[1733301075581,0.55,3712.4,3711.4,3.0]
[1733301075582,0.55,3712.2,3711.2,0.8775]
[1733301075919,0.55,3712.1,3711.2,0.8775]
[1733301076126,3.24391,3712.1,3711.2,0.8775]
[1733301076414,0.55,3711.9,3711.2,0.8775]
[1733301076623,3.24404,3711.9,3711.2,0.8775]
[1733301077727,0.55,3712.0,3711.2,0.8775]
[1733301077878,0.79948934,3712.0,3711.2,0.8775]
[1733301078071,3.24396,3712.0,3711.2,0.8775]
[1733301078319,3.24413,3711.8,3711.2,0.8775]
[1733301078475,3.24413,3711.8,3711.0,0.53196306]
[1733301079322,0.55,3711.5,3710.9,0.8358]
[1733301079619,3.24433,3711.5,3710.5,3.8427]
[1733301079928,0.55,3711.5,3710.6,0.53223266]
[1733301080225,2.6944,3711.4,3710.2,0.865]
[1733301080529,0.55,3711.0,3710.2,0.865]
[1733301081527,0.55,3711.2,3710.2,0.865]
[1733301081686,0.55,3710.8,3710.2,0.865]
[1733301082026,0.55,3710.8,3709.9,0.889]
[1733301082233,0.874477,3710.8,3710.0,0.54549669]
[1733301082548,0.55,3710.8,3709.6,0.889]
[1733301082848,3.24527,3710.2,3709.7,0.54436439]
[1733301083538,0.55,3710.0,3709.7,0.54436439]
[1733301084235,0.55,3710.3,3709.7,0.54436439]
[1733301084395,0.55,3710.2,3709.7,0.54436439]
[1733301084593,3.59474891,3710.2,3709.7,0.54436439]
[1733301085233,0.89947891,3710.2,3709.7,0.54436439]
[1733301086021,3.84432938,3710.2,3709.3,0.8702]
[1733301086342,3.59475891,3710.2,3709.3,0.8702]
[1733301087044,3.59475891,3710.2,3709.6,0.52864932]
[1733301087241,0.55,3710.0,3709.6,0.52864932]
[1733301087900,0.55,3710.0,3709.3,0.8702]
[1733301088844,0.55,3710.0,3708.8,2.69626]
[1733301088845,2.69554,3709.9,3708.8,2.69626]
[1733301089057,0.55,3709.8,3708.9,0.8918]
[1733301089344,3.24556,3709.8,3708.9,0.8918]
[1733301089502,0.55,3709.7,3708.9,0.8918]
[1733301090155,0.55,3709.8,3708.9,3.58801]
[1733301091268,0.55,3710.0,3708.9,0.8918]
[1733301091553,0.24923339,3709.9,3709.0,2.69614]
[1733301091743,0.79923339,3709.8,3709.0,2.69614]
[1733301091913,0.55,3709.8,3709.0,2.69614]
[1733301092311,0.55,3710.0,3709.0,2.69614]
[1733301092654,0.55,3709.8,3709.2,2.69599]
[1733301092959,2.6952,3710.3,3708.8,0.53330455]
[1733301092960,0.24919689,3709.9,3709.6,0.8982]
[1733301093113,0.24921616,3710.2,3709.6,0.8982]
[1733301093319,3.11008815,3711.0,3709.6,0.8982]
[1733301093320,3.39871502,3710.9,3709.6,0.8982]
[1733301093514,0.64794383,3710.8,3709.6,0.8982]
[1733301093748,2.69498,3710.6,3709.6,0.8982]
[1733301094020,0.24922881,3710.5,3709.6,0.8982]
[1733301094350,0.55,3710.3,3709.6,0.8982]
[1733301094553,0.55,3710.5,3709.6,3.5939]
[1733301094855,0.55,3710.3,3709.8,2.69552]
[1733301095354,0.55,3710.6,3709.8,2.69552]
[1733301095559,0.55,3710.4,3709.6,3.59389]
[1733301095873,0.55,3710.4,3709.6,0.8982]
[1733301096154,0.34940773,3710.5,3709.3,0.52761208]
[1733301096155,3.24541,3710.0,3709.3,0.8466]
[1733301096755,0.55,3709.8,3709.3,0.8466]
[1733301096960,0.24927492,3710.2,3709.3,0.8466]
[1733301097118,2.69486,3710.8,3709.3,0.8466]
[1733301097119,0.55,3710.4,3709.7,0.8866]
[1733301097460,0.55,3710.6,3709.7,3.58218]
[1733301097623,0.24934883,3710.5,3709.7,3.58218]
[1733301097821,0.79934883,3710.4,3709.7,3.58218]
[1733301098026,0.24934883,3710.3,3709.7,0.8866]
[1733301098366,3.64378275,3710.6,3709.7,0.8866]
[1733301098666,0.55,3710.4,3709.7,0.8866]
[1733301098874,0.24941142,3710.3,3709.7,0.8866]
[1733301099049,0.55,3710.4,3709.7,0.8866]
[1733301099251,0.2493759,3710.3,3709.7,0.8866]
[1733301099559,0.2493759,3710.2,3709.7,0.8866]
[1733301099863,0.55,3710.4,3709.7,0.8866]
[1733301100042,0.2493929,3710.3,3709.7,0.8866]
[1733301100356,0.2493929,3710.2,3709.7,0.8866]
[1733301100571,0.55,3710.5,3709.8,2.69553]
[1733301100731,0.24937462,3710.4,3709.8,2.69553]
[1733301100938,0.55,3710.6,3709.8,2.69553]
[1733301101144,0.24933877,3710.5,3709.8,2.69553]
[1733301101368,0.24933877,3710.4,3709.7,0.8866]
[1733301101570,0.55,3711.0,3709.4,5.3917]
[1733301101869,0.55,3710.8,3710.0,0.9006]
[1733301102074,0.24928664,3710.7,3710.0,0.9006]
[1733301102279,0.24928664,3710.6,3710.0,0.9006]
[1733301102444,0.39879275,3711.3,3710.4,3.59572]
[1733301102653,2.69435,3711.5,3710.4,3.59572]
[1733301102654,0.95745266,3711.2,3710.4,3.59572]
[1733301102955,0.24935871,3711.1,3710.5,2.69505]
[1733301103155,0.39897395,3711.4,3710.4,0.9006]
[1733301103156,0.39897395,3711.6,3710.4,0.9006]
[1733301103330,0.64860581,3711.5,3710.8,0.8787]
[1733301103528,0.24946377,3711.4,3710.8,0.8787]
[1733301103764,0.24946377,3711.3,3710.5,2.69504]
[1733301103968,0.24946377,3711.2,3710.5,0.8787]
[1733301104173,6.34981684,3712.4,3709.1,2.69601]
[1733301104174,0.24946377,3711.1,3709.2,3.0]
[1733301104373,1.19860581,3711.0,3710.1,0.8787]
[1733301104685,0.24946377,3710.9,3710.1,0.8787]
[1733301104842,0.24946377,3710.8,3710.1,0.8787]
[1733301105051,0.94917735,3711.0,3710.1,0.8787]
[1733301105243,0.24948554,3710.9,3710.1,0.8787]
[1733301105442,0.24948554,3710.8,3710.1,0.8787]
[1733301105641,0.24948554,3710.7,3710.1,0.8787]
[1733301105843,0.55,3711.3,3710.3,2.69518]
[1733301106184,0.64902263,3711.2,3710.8,0.8593]
[1733301106478,0.24959754,3711.1,3710.8,0.8593]
[1733301106632,0.39942509,3711.4,3710.8,3.5541]
[1733301106970,0.24968731,3711.3,3711.0,2.69462]
[1733301107190,0.3995105,3711.6,3711.0,2.69462]
[1733301107466,0.24970648,3711.5,3711.0,2.69462]
[1733301107668,0.24970648,3711.4,3711.0,2.69462]
[1733301107978,2.69399,3712.0,3711.0,2.69462]
[1733301108176,0.55,3711.8,3711.0,2.69462]
[1733301108344,0.24973433,3711.7,3711.0,2.69462]
[1733301108601,0.24973433,3711.6,3711.4,0.9154]
[1733301108911,2.69368,3712.4,3711.4,3.60979]
[1733301110177,0.55,3712.1,3711.5,2.69431]
[1733301110527,0.24946273,3712.0,3711.5,2.69431]
[1733301110692,0.55,3712.2,3711.5,2.69431]
[1733301111012,0.24944944,3712.1,3711.5,2.69431]
[1733301111170,0.94709112,3712.2,3711.5,2.69431]
[1733301111171,0.24944944,3712.0,3711.5,2.69431]
[1733301111377,0.94709112,3712.2,3711.5,2.69431]
[1733301111593,0.24935573,3712.1,3711.5,2.69431]
[1733301111883,0.94709112,3712.2,3711.5,2.69431]
[1733301112089,0.24936432,3712.1,3711.5,2.69431]
[1733301112321,0.94709112,3712.2,3711.5,2.69431]
[1733301113509,0.94709112,3712.2,3711.4,0.9154]
[1733301113687,0.55,3712.2,3711.4,0.9154]
[1733301114024,0.79936148,3712.2,3711.4,0.9154]
[1733301114315,0.79936148,3712.2,3711.4,1.44303419]
[1733301114615,0.55,3712.2,3711.4,1.44303419]
[1733301117016,0.55,3712.3,3711.4,4.13741419]
[1733301117215,0.95428692,3712.3,3711.4,4.13741419]
[1733301118192,0.95428692,3712.3,3711.4,1.44303419]
[1733301118391,2.69366,3712.5,3711.4,1.44303419]
[1733301118596,2.69368,3712.4,3711.4,1.44303419]
[1733301118932,0.55,3712.3,3711.4,1.44303419]
[1733301119423,3.2438,3712.3,3711.4,1.44303419]
[1733301120286,2.6939,3712.1,3711.4,1.44303419]
[1733301120618,0.26939,3712.1,3711.4,1.44303419]
[1733301121076,3.24397,3712.0,3711.4,1.44303419]
[1733301121281,3.24397,3712.0,3711.1,0.8281]
[1733301121719,0.55,3712.0,3711.1,0.8281]
[1733301121926,2.69405,3711.9,3711.1,0.8281]
[1733301122098,0.55,3711.8,3711.1,0.8281]
[1733301122485,0.55,3711.8,3710.6,0.8281]
[1733301122789,3.0,3712.6,3710.6,0.8281]
[1733301122790,0.55,3712.1,3710.6,0.8281]
[1733301122987,2.69433,3711.5,3710.6,0.8281]
[1733301123290,0.55,3711.6,3710.6,0.8281]
[1733301123525,0.55,3711.9,3710.6,3.52307]
[1733301123721,0.55,3711.7,3711.0,0.54699821]
[1733301123932,2.69433,3711.5,3711.0,0.54699821]
[1733301124645,0.55,3711.4,3710.6,0.8281]
[1733301124852,0.55,3711.4,3710.6,1.37218635]
[1733301125157,2.69462,3711.1,3710.5,0.04291348]
[1733301125343,0.55,3711.4,3710.5,0.04291348]
[1733301125344,0.55,3710.9,3710.5,0.04291348]
[1733301125536,3.24479,3710.9,3710.5,0.04291348]
[1733301126426,2.69485,3710.8,3710.5,0.04291348]
[1733301126748,0.55,3710.7,3710.5,0.04291348]
[1733301126948,3.24477,3710.9,3710.5,0.04291348]
[1733301127152,0.55,3710.7,3710.5,0.04291348]
[1733301127845,0.55,3710.9,3710.5,0.04291348]
[1733301128209,3.62114576,3710.9,3710.5,0.04291348]
[1733301128616,0.92637576,3710.9,3710.5,0.04291348]
[1733301128815,0.55,3711.2,3710.5,0.04291348]
[1733301129050,0.55,3711.0,3710.5,0.04291348]
[1733301129209,0.39932096,3711.5,3710.6,0.8567]
[1733301129410,0.24960527,3711.4,3710.6,0.8567]
[1733301129668,2.69407,3711.9,3710.6,0.8567]
[1733301129669,0.39932096,3711.6,3710.6,0.8567]
[1733301129816,2.69405,3711.9,3710.9,2.69476]
[1733301130153,0.24962807,3711.8,3711.0,0.8565]
[1733301130351,0.24962807,3711.7,3711.0,0.8565]
[1733301130555,0.24962807,3711.8,3711.0,0.8565]
[1733301130849,0.24962807,3711.7,3711.0,0.8565]
[1733301131025,0.24962807,3711.8,3711.0,0.8565]
[1733301131222,0.24962807,3711.7,3711.0,0.8565]
[1733301131418,3.0283583,3711.9,3711.0,0.8565]
[1733301131419,3.24411,3711.8,3711.0,0.8565]
[1733301131755,2.69441,3711.4,3711.0,0.8565]
[1733301131925,0.55,3711.6,3711.0,0.8565]
[1733301132127,0.24986308,3711.5,3711.0,0.8565]
[1733301132334,0.55,3711.6,3711.0,0.8565]
[1733301132569,0.24993647,3711.5,3711.0,0.8565]
[1733301132732,0.55,3711.5,3711.0,0.8565]
[1733301133049,0.24992748,3711.4,3711.0,0.8565]
[1733301133253,0.55,3711.5,3711.0,0.8565]
[1733301133452,0.2499377,3711.4,3711.0,0.8565]
[1733301133630,0.55,3711.5,3711.0,0.8565]
[1733301133961,0.55,3711.7,3711.0,0.8565]
[1733301134131,0.55,3711.5,3711.0,0.8565]
[1733301134452,0.35784183,3711.8,3711.0,0.8565]
[1733301134771,0.24995488,3711.7,3711.0,0.8565]
[1733301134910,0.24995488,3711.6,3711.0,0.8565]
[1733301135115,0.24995488,3711.5,3711.0,0.8565]
[1733301135343,0.55,3712.1,3711.0,0.8565]
[1733301135614,2.69421,3711.7,3711.0,0.8565]
[1733301135827,0.24998006,3711.6,3711.0,0.8565]
[1733301136036,3.02862582,3711.7,3711.0,0.8565]
[1733301136258,0.24997372,3711.6,3711.0,0.8565]
[1733301136459,0.24997372,3711.5,3711.0,0.8565]
[1733301136676,3.24425,3711.6,3711.0,0.8565]
[1733301136811,0.55,3711.4,3711.0,0.8565]
[1733301137016,0.24997636,3711.3,3711.0,0.8565]
[1733301137254,0.55,3711.4,3711.0,0.8565]
[1733301138031,0.55,3711.7,3711.0,0.8565]
[1733301138374,0.24996364,3711.6,3711.0,3.55117]
[1733301138617,0.55,3711.9,3711.1,0.355117]
[1733301138779,0.2499862,3711.8,3711.0,3.55117]
[1733301138977,0.55,3711.9,3711.1,2.6946]
[1733301139196,0.24998697,3711.8,3711.2,0.9028]
[1733301139389,0.55,3712.0,3711.2,0.9028]
[1733301139692,0.24999653,3711.9,3711.2,3.59732]
[1733301139890,0.24999653,3711.8,3711.3,3.054202]
[1733301140211,0.55,3712.1,3711.3,3.054202]
[1733301140416,0.25002101,3712.0,3711.3,2.69447]
[1733301140637,0.25002101,3711.9,3711.4,2.69439]
[1733301140915,0.55,3712.2,3711.4,2.69439]
[1733301141123,0.25007747,3712.1,3711.2,3.59731]
[1733301141291,0.25007747,3712.0,3711.2,3.59731]
[1733301141619,0.25007747,3711.9,3711.2,3.59731]
[1733301141783,0.55,3712.3,3711.3,2.69446]
[1733301141988,0.55,3712.1,3711.3,2.69446]
[1733301142317,0.2500889,3712.0,3711.3,2.69446]
[1733301142503,0.55,3712.1,3711.3,2.69446]
[1733301142709,0.25005974,3711.9,3711.3,2.69446]
[1733301142885,0.25005974,3711.8,3711.3,2.69446]
[1733301143084,0.25005974,3711.7,3711.3,3.22269594]
[1733301143316,0.25005974,3711.6,3711.3,3.22269594]
[1733301143528,0.40009559,3712.0,3711.3,3.22269594]
[1733301143724,0.25003153,3711.9,3711.3,3.22269594]
[1733301144024,0.25003153,3711.8,3711.3,3.22269594]
[1733301144226,0.25003153,3711.7,3711.3,3.22269594]
[1733301144426,0.25003153,3711.6,3711.3,3.22269594]
[1733301144625,0.40009559,3712.0,3711.4,3.57617]
[1733301144826,0.25006437,3711.9,3711.8,2.69409]
[1733301145131,1.81897061,3712.7,3712.0,2.69391]
[1733301145132,0.25009379,3712.2,3712.0,2.69391]
[1733301145332,0.25008042,3712.5,3712.1,0.8947]
[1733301145489,0.25008042,3712.4,3712.1,0.8947]
[1733301145683,0.40009559,3712.7,3712.1,0.8947]
[1733301145884,0.25008059,3712.6,3712.1,0.8947]
[1733301146322,0.25008059,3712.5,3712.1,0.8947]
[1733301146524,0.25008059,3712.4,3712.1,0.8947]
[1733301146724,0.55,3712.6,3712.1,0.8947]
[1733301146926,0.25003258,3712.5,3712.1,0.8947]
[1733301147123,0.25003258,3712.4,3712.1,0.8947]
[1733301147434,0.25003258,3712.3,3712.1,0.8947]
[1733301147726,0.55,3712.6,3712.1,0.8947]
[1733301147901,0.24999978,3712.5,3712.1,0.8947]
[1733301148111,0.24999978,3712.4,3712.1,0.8947]
[1733301148331,0.24999978,3712.3,3712.1,0.8947]
[1733301148616,0.55,3712.6,3712.1,0.8947]
[1733301148789,0.24997277,3712.5,3712.1,0.8947]
[1733301148986,0.24997277,3712.4,3712.1,0.8947]
[1733301149189,0.55,3712.7,3712.1,0.8947]
[1733301149403,0.24994283,3712.6,3712.1,0.8947]
[1733301149636,0.24994283,3712.5,3712.1,0.8947]
[1733301149831,0.24994663,3712.4,3712.1,0.8947]
[1733301150039,2.69354,3712.6,3712.1,0.8947]
[1733301150214,0.2499416,3712.5,3712.1,0.8947]
[1733301150414,0.2499416,3712.4,3712.1,0.8947]
[1733301150598,0.2499416,3712.3,3712.1,0.8947]
[1733301150795,2.69373,3712.4,3712.1,0.8947]
[1733301151035,0.56873361,3712.3,3711.7,0.53959782]
[1733301151340,0.24991192,3712.2,3711.5,0.8988]
[1733301151542,0.24991192,3712.1,3711.5,0.8988]
[1733301151709,0.55,3712.4,3711.5,0.8988]
[1733301151906,0.24992631,3712.3,3711.5,0.8988]
[1733301152109,0.24992631,3712.2,3711.5,0.8988]
[1733301152326,0.24992631,3712.1,3711.5,0.8988]
[1733301152529,2.69382,3712.2,3711.5,0.8988]
[1733301152699,0.24993639,3712.1,3711.5,0.8988]
[1733301153038,2.69382,3712.2,3711.5,0.8988]
[1733301153242,0.24996396,3712.1,3711.5,0.8988]
[1733301153398,2.69382,3712.2,3711.5,0.8988]
[1733301153603,0.2499695,3712.1,3712.0,0.04291348]
[1733301155235,2.9438595,3712.1,3712.0,0.04291348]
[1733301155436,3.84324545,3712.1,3712.0,0.04291348]
[1733301155999,3.29324545,3712.1,3712.0,0.04291348]
[1733301156341,3.04327595,3712.1,3712.0,0.04291348]
[1733301156515,3.29327024,3712.1,3712.0,0.04291348]
[1733301156713,3.69326111,3712.1,3712.0,0.04291348]
[1733301156917,4.24326111,3712.1,3712.0,0.04291348]
[1733301157211,7.24326111,3712.1,3712.0,0.04291348]
[1733301158016,7.65991827,3712.1,3712.0,0.04291348]
[1733301158451,11.66548323,3712.1,3712.0,0.04291348]
[1733301159240,11.82711691,3712.1,3712.0,0.04291348]
[1733301159416,11.41045975,3712.1,3712.0,0.04291348]
[1733301160255,11.4102114,3712.1,3712.0,0.04291348]
[1733301160556,13.66884004,3712.1,3712.0,0.04291348]
[1733301160759,13.66769552,3712.1,3712.0,0.04291348]
[1733301161555,11.40906688,3712.1,3712.0,0.04291348]
[1733301161765,13.66769552,3712.1,3712.0,0.04291348]
[1733301161917,13.83625104,3712.1,3712.0,0.04291348]
[1733301162548,11.5776224,3712.1,3712.0,0.04291348]
[1733301162746,13.83625104,3712.1,3712.0,0.04291348]
[1733301162949,13.01771036,3712.1,3712.0,0.04291348]
[1733301163125,13.83604427,3712.1,3712.0,0.04291348]
[1733301163861,11.405183,3712.1,3712.0,0.04291348]
[1733301164068,11.40506637,3712.1,3712.0,0.04291348]
[1733301165139,9.72587424,3712.1,3712.0,0.04291348]
[1733301165344,11.57715921,3712.1,3712.0,0.04291348]
[1733301165540,11.40505948,3712.1,3712.0,0.04291348]
[1733301165739,11.40485907,3712.1,3712.0,0.04291348]
[1733301166061,11.57690317,3712.1,3712.0,0.04291348]
[1733301166594,11.57672875,3712.1,3712.0,0.04291348]
[1733301167943,11.40473055,3712.1,3712.0,0.04291348]
[1733301168356,9.24250297,3712.1,3712.0,0.04291348]
[1733301168752,8.82611346,3712.1,3712.0,0.04291348]
[1733301168991,9.24250297,3712.1,3712.0,0.04291348]
[1733301169376,10.36198283,3712.1,3712.0,0.04291348]
[1733301169576,9.79250297,3712.1,3712.0,0.04291348]
[1733301169798,11.47173411,3712.1,3712.0,0.04291348]
[1733301169961,11.0553446,3712.1,3712.0,0.04291348]
[1733301170167,11.47173483,3712.1,3712.0,0.04291348]
[1733301170498,2.69438,3711.5,3711.2,0.9102]
[1733301170709,0.24984977,3711.4,3711.2,0.9102]
[1733301170852,0.24984977,3711.3,3711.2,0.9102]
[1733301172002,0.24984977,3711.3,3711.2,1.270694]
[1733301173395,0.24983713,3711.3,3711.2,1.270694]
[1733301173625,0.39972237,3711.7,3711.2,0.360494]
[1733301173912,0.24985142,3711.6,3711.3,0.8409]
[1733301174208,0.24985142,3711.5,3711.3,0.8409]
[1733301174419,0.39972237,3711.9,3711.3,0.8409]
[1733301174569,0.24986302,3711.8,3711.3,0.8409]
[1733301174768,0.24986302,3711.7,3711.3,0.8409]
[1733301175070,2.69396,3712.0,3711.3,0.8409]
[1733301175071,0.24986302,3711.6,3711.3,0.8409]
[1733301175413,0.24986302,3711.5,3711.3,0.8409]
[1733301175586,0.39978084,3711.8,3711.3,0.8409]
[1733301175909,0.2499046,3711.7,3711.3,1.194458]
[1733301176208,0.2499046,3711.6,3711.3,0.8409]
[1733301176397,0.2499046,3711.5,3711.3,0.8409]
[1733301176600,0.2499046,3711.4,3711.3,0.8409]
[1733301176781,0.39993794,3711.9,3711.3,0.8409]
[1733301176981,0.64989841,3711.8,3711.3,0.8409]
[1733301177209,0.64989841,3711.7,3711.3,0.8409]
[1733301177382,0.24996047,3711.6,3711.3,0.8409]
[1733301177576,0.24996047,3711.5,3711.3,0.8409]
[1733301177793,0.24996047,3711.4,3711.3,0.8409]
[1733301180478,0.25026419,3711.4,3711.3,0.8409]
[1733301181320,0.25026419,3711.4,3711.0,0.8872]
[1733301181551,0.65068839,3711.3,3711.0,0.8872]
[1733301181718,0.65068839,3711.2,3711.0,0.8872]
[1733301182026,0.25026419,3711.1,3711.0,0.8872]
[1733301183317,0.25026419,3711.1,3711.0,1.02888777]
[1733301184291,0.65065395,3711.1,3711.0,0.8872]
[1733301184488,3.34526395,3711.1,3711.0,0.8872]
[1733301184875,0.65065395,3711.1,3711.0,0.8872]
[1733301185767,0.65089562,3711.1,3711.0,0.8872]
[1733301186112,0.81944323,3711.1,3711.0,0.8872]
[1733301186609,0.65089562,3711.1,3711.0,0.8872]
[1733301186905,0.81944233,3711.1,3711.0,0.8872]
[1733301187425,0.65089562,3711.1,3711.0,0.8872]
[1733301187614,0.8194425,3711.1,3711.0,0.8872]
[1733301187769,0.65089562,3711.1,3711.0,0.8872]
[1733301188099,0.81944238,3711.1,3711.0,0.8872]
[1733301188311,0.65089562,3711.1,3711.0,0.8872]
[1733301188478,0.81944207,3711.1,3711.0,0.8872]
[1733301188700,0.65089562,3711.1,3711.0,0.8872]
[1733301189216,0.81944001,3711.1,3711.0,0.8872]
[1733301190949,0.65089562,3711.1,3711.0,0.8872]
[1733301191303,0.81943684,3711.1,3711.0,0.8872]
[1733301192233,0.65089562,3711.1,3711.0,0.8872]
[1733301192395,0.81943859,3711.1,3711.0,0.8872]
[1733301192593,0.65089562,3711.1,3711.0,0.8872]
[1733301192793,0.65089562,3711.1,3711.0,1.245409]
[1733301193997,0.65089562,3711.1,3711.0,0.8872]
[1733301194399,0.65089562,3711.1,3710.5,0.8755]
[1733301194644,1.15089312,3710.6,3709.4,0.8755]
[1733301194809,1.15089312,3710.3,3709.1,0.8755]
[1733301195152,1.15089312,3710.3,3707.3,0.2]
[1733301195153,2.69595,3709.3,3708.7,0.8382]
[1733301195312,2.69534,3710.1,3708.7,0.8382]
[1733301195313,0.25034447,3709.2,3708.7,0.8382]
[1733301195500,2.69615,3709.0,3708.7,0.8382]
[1733301195700,0.25034447,3708.9,3708.3,0.8382]
[1733301196012,0.25034447,3708.8,3708.3,1.24648697]
[1733301196214,2.69615,3709.0,3708.3,0.8382]
[1733301196414,0.24955602,3708.9,3708.3,0.8382]
[1733301196614,2.696,3709.2,3708.3,0.8382]
[1733301196828,0.24960744,3709.1,3708.3,0.8382]
[1733301197028,0.24960744,3709.0,3708.3,0.8382]
[1733301197204,0.39932415,3709.5,3708.4,0.13811457]
[1733301197414,2.69575,3709.6,3708.4,0.13811457]
[1733301197415,2.69609,3709.1,3708.4,0.13811457]
[1733301197615,0.24946094,3709.0,3708.4,0.13811457]
[1733301197812,2.69609,3709.1,3708.4,0.13811457]
[1733301198011,0.24949862,3709.0,3708.4,0.13811457]
[1733301198228,0.64882277,3708.9,3708.4,0.13811457]
[1733301198426,0.64882277,3708.8,3708.4,0.13811457]
[1733301198617,0.24949862,3708.7,3708.4,0.13811457]
[1733301198834,0.24949862,3708.6,3708.4,0.13811457]
[1733301199030,0.2492488,3708.5,3708.4,0.13811457]
[1733301199234,0.39876394,3709.1,3708.4,0.13811457]
[1733301199449,2.86457877,3709.3,3708.4,0.13811457]
[1733301199450,0.64782477,3709.0,3708.4,0.13811457]
[1733301199647,0.64782477,3708.9,3708.4,0.13811457]
[1733301199854,0.24906083,3708.8,3708.4,0.13811457]
[1733301200158,0.24906083,3708.7,3708.4,0.13811457]
[1733301200345,0.39821673,3709.2,3708.4,0.13811457]
[1733301200551,0.6470269,3709.1,3708.4,0.13811457]
[1733301200748,0.6470269,3709.0,3708.4,0.13811457]
[1733301201065,0.24881017,3708.9,3708.4,0.13811457]
[1733301201371,0.24881017,3708.8,3708.4,0.13811457]
[1733301201665,0.24881017,3708.7,3708.4,0.13811457]
[1733301201838,0.39792183,3709.1,3708.4,0.13811457]
[1733301202022,0.64669924,3709.0,3708.4,0.13811457]
[1733301202228,0.24877741,3708.9,3708.4,0.13811457]
[1733301202464,0.24877741,3708.8,3708.4,0.13811457]
[1733301202649,0.24877741,3708.7,3708.4,0.13811457]
[1733301202925,0.39790754,3709.1,3708.4,0.13811457]
[1733301203149,0.64663235,3709.0,3708.4,0.13811457]
[1733301203323,0.24872481,3708.9,3708.4,0.13811457]
[1733301203519,0.24872481,3708.8,3708.4,0.13811457]
[1733301203757,0.24872481,3708.7,3708.4,0.13811457]
[1733301203962,0.39786607,3709.2,3708.4,0.13811457]
[1733301204161,0.64655225,3709.1,3708.4,0.13811457]
[1733301204332,0.64655225,3709.0,3708.4,0.13811457]
[1733301204534,0.24868618,3708.9,3708.4,0.13811457]
[1733301204734,0.24868618,3708.8,3708.4,0.13811457]
[1733301204957,0.24868618,3708.8,3708.1,0.54294566]
[1733301204958,0.24868618,3708.7,3708.1,1.40144566]
[1733301205136,0.39780857,3709.1,3708.1,1.40144566]
[1733301205344,0.64642637,3709.0,3708.2,2.69671]
[1733301205678,2.69586,3709.4,3708.2,2.69671]
[1733301205820,0.64638873,3709.3,3708.3,0.40981557]
[1733301206023,0.64638873,3709.2,3708.3,0.40981557]
[1733301206286,0.64638873,3709.1,3708.1,1.40144566]
[1733301206485,0.64638873,3709.0,3708.1,4.09821566]
[1733301206660,0.64638873,3708.9,3708.1,4.09821566]
[1733301206863,0.2486046,3708.8,3708.1,4.09821566]
[1733301207191,0.2486046,3708.7,3708.1,4.09821566]
[1733301207368,0.39779412,3709.0,3708.2,0.40982157]
[1733301207561,0.64640703,3708.9,3708.2,0.40982157]
[1733301207793,0.24861291,3708.8,3708.2,0.40982157]
[1733301207996,0.24861291,3708.7,3708.2,0.40982157]
[1733301208147,0.3977896,3709.0,3708.2,0.40982157]
[1733301208352,0.24862882,3708.9,3708.2,0.40982157]
[1733301208658,0.24862882,3708.8,3708.2,0.40982157]
[1733301208996,0.24862882,3708.7,3708.2,3.10654157]
[1733301209152,2.69603,3709.2,3708.2,3.10654157]
[1733301209347,0.64650492,3709.1,3708.2,3.10654157]
[1733301209551,0.64650492,3709.0,3708.3,0.45079872]
[1733301209777,2.69603,3709.2,3708.3,0.45079872]
[1733301209778,0.24866861,3708.9,3708.3,0.45079872]
[1733301209990,0.24866861,3708.8,3708.3,0.45079872]
[1733301210305,0.24866861,3708.8,3708.1,4.09823566]
[1733301210306,0.24866861,3708.7,3708.1,1.40144566]
[1733301210603,0.64652203,3708.6,3707.7,0.8428]
[1733301210806,3.34301307,3708.5,3707.7,0.8428]
[1733301211099,0.64649489,3708.4,3707.7,0.8428]
[1733301211312,0.16864711,3708.9,3707.7,0.8428]